{"text_format":"1","workbook":"xlsx","n_sheets":8,"sheets":["Távhő Ökocímke Adatlap","1.táblázat","2.táblázat","3.táblázat","e VKk","Kapcsolt ei meghatározás","Saját e vill","Besorolási osztályok"],"not_rendered":{"charts":0,"images":8,"macros":1,"external_links":0,"defined_names":6,"comments":4,"pivot_tables":0},"unopened":[],"bounds":{"document_bytes":16777216,"sheet_cells":100000,"rows_first":2000,"rows_last":500,"rows_between":2000,"halvings":0,"cell_chars":16384,"cell_head_chars":4096},"cells_cut":0,"cells_raw":0,"read":"whole","date_system":"1900"}

{"sheet":"Távhő Ökocímke Adatlap","index":0,"n_rows":61,"n_cols":33,"rows_kept":61,"cut":false,"hidden":false,"merged":[[0,18,0,35],[27,19,28,32],[31,29,31,32],[3,1,3,3],[2,1,2,2],[33,8,33,15],[4,1,4,3],[51,0,51,3],[27,0,27,3],[38,0,38,3],[5,1,5,3]]}
[null,null,null,null,null,null,null,null,null,null,null,null,null,null,null,null,null,null,"Értékelés"]
["Távhő Ökocímke Adatlap"]
["Távhő Ökocímke igénylés azonosító száma","MTÖ-2022-00x",null,"Kérjük a  szürke mezők kitöltését, az adott mezőhöz tartozó megjegyzés figyelembevételével. ",null,null,"A világos kék mezőket csak akkor kell módosítania, ha van pontosabb adata. ",null,null,null,null,null,null,null,null,null,null,null,null,"OK","Kérjük a szakértő írjon egy OK-ot abba a mezőbe, amelyikhez tartozó adatot rendben találta. "]
["Távhőszolgáltató neve","XY ",null,null,null,null,null,null,null,null,null,null,null,null,null,null,null,null,null,"Megj","Kérjük amennyben a szakértő módosítja a távhőszolgáltató által megadott értéket, úgy írja a megfelelő cellába a módosításhoz tartozó megjegyzést. "]
["Távhőrendszer megnevezése","AB hidraulikailag egységes távhőrendszer"]
["Távhőenergia szolgáltatásba bevont lakások (január 1-jei) száma"]
[null,"S"]
["Hőforrás megnevezése",null,"A Hőtermelő technológia","B Hőtermelő technológia","C Hőtermelő technológia","D Hőtermelő technológia","E Hőtermelő technológia","F Hőtermelő technológia","G Hőtermelő technológia","H Hőtermelő technológia","I Hőtermelő technológia","J Hőtermelő technológia","K Hőtermelő technológia","L Hőtermelő technológia","N Hőtermelő technológia","M Hőtermelő technológia",null,null,null,{"$f":"C8","v":"A Hőtermelő technológia"},{"$f":"D8","v":"B Hőtermelő technológia"},"C Hőtermelő technológia","D Hőtermelő technológia","E Hőtermelő technológia","F Hőtermelő technológia","G Hőtermelő technológia","H Hőtermelő technológia","I Hőtermelő technológia","J Hőtermelő technológia","K Hőtermelő technológia","L Hőtermelő technológia","N Hőtermelő technológia",{"$f":"P8","v":"M Hőtermelő technológia"}]
["Távhőtermelési technológia sorszáma (i)",null,"10.Kapcsolt energiatermelés kombinált ciklusú erőművi blokkban","-","-","-","-","-","-","-","-","-","-","-","-","-",null,null,null,"Megj: ","Megj: ","Megj: ","Megj: ","Megj: ","Megj: ","Megj: ","Megj: ","Megj: ","Megj: ","Megj: ","Megj: ","Megj: ","Megj: "]
["Felhasznált primerenergia fajtája",null,"Földgáz","-","-","-","-","-","-","-","-","-","-","-","-","-",null,null,null,"Megj: ","Megj: ","Megj: ","Megj: ","Megj: ","Megj: ","Megj: ","Megj: ","Megj: ","Megj: ","Megj: ","Megj: ","Megj: ","Megj: "]
["Qi (GJ)",{"$f":"SUM(C11:P11)","v":40000},40000,null,null,null,null,null,null,null,null,null,null,null,null,null,null,null,null,"Megj: ","Megj: ","Megj: ","Megj: ","Megj: ","Megj: ","Megj: ","Megj: ","Megj: ","Megj: ","Megj: ","Megj: ","Megj: ","Megj: "]
["ai",null,{"$f":"ROUND(C11/$B$11,4)","v":1},{"$f":"ROUND(D11/$B$11,4)","v":0},0,0,0,0,0,0,0,0,0,0,0,0,null,null,null,"-","-","-","-","-","-","-","-","-","-","-","-","-","-"]
["ei",null,{"$f":"VLOOKUP(C$9,'1.táblázat'!$A$1:$B$17,2,FALSE)","v":0.54},{"$f":"VLOOKUP(D$9,'1.táblázat'!$A$1:$B$17,2,FALSE)","v":0},{"$f":"VLOOKUP(E$9,'1.táblázat'!$A$1:$B$17,2,FALSE)","v":0},{"$f":"VLOOKUP(F$9,'1.táblázat'!$A$1:$B$17,2,FALSE)","v":0},{"$f":"VLOOKUP(G$9,'1.táblázat'!$A$1:$B$17,2,FALSE)","v":0},{"$f":"VLOOKUP(H$9,'1.táblázat'!$A$1:$B$17,2,FALSE)","v":0},{"$f":"VLOOKUP(I$9,'1.táblázat'!$A$1:$B$17,2,FALSE)","v":0},{"$f":"VLOOKUP(J$9,'1.táblázat'!$A$1:$B$17,2,FALSE)","v":0},{"$f":"VLOOKUP(K$9,'1.táblázat'!$A$1:$B$17,2,FALSE)","v":0},{"$f":"VLOOKUP(L$9,'1.táblázat'!$A$1:$B$17,2,FALSE)","v":0},{"$f":"VLOOKUP(M$9,'1.táblázat'!$A$1:$B$17,2,FALSE)","v":0},{"$f":"VLOOKUP(N$9,'1.táblázat'!$A$1:$B$17,2,FALSE)","v":0},{"$f":"VLOOKUP(O$9,'1.táblázat'!$A$1:$B$17,2,FALSE)","v":0},{"$f":"VLOOKUP(P$9,'1.táblázat'!$A$1:$B$17,2,FALSE)","v":0},null,null,null,"Megj: ","Megj: ","Megj: ","Megj: ","Megj: ","Megj: ","Megj: ","Megj: ","Megj: ","Megj: ","Megj: ","Megj: ","Megj: ","Megj: "]
["n",0.15,null,null,null,null,null,null,null,null,null,null,null,null,null,null,null,null,null,"Megj: ","Megj: ","Megj: ","Megj: ","Megj: ","Megj: ","Megj: ","Megj: ","Megj: ","Megj: ","Megj: ","Megj: ","Megj: ","Megj: "]
["avil",{"$f":"IF(B11<100000,0.011,IF(B11>=500000,0.006,0.008))","v":1.0999999999999999E-2},null,null,null,null,null,null,null,null,null,null,null,null,null,null,null,null,null,"Megj: ","Megj: ","Megj: ","Megj: ","Megj: ","Megj: ","Megj: ","Megj: ","Megj: ","Megj: ","Megj: ","Megj: ","Megj: ","Megj: "]
["evil",2.5,null,null,null,null,null,null,null,null,null,null,null,null,null,null,null,null,null,"Megj: ","Megj: ","Megj: ","Megj: ","Megj: ","Megj: ","Megj: ","Megj: ","Megj: ","Megj: ","Megj: ","Megj: ","Megj: ","Megj: "]
["gCO2,i (kg/GJ)",null,{"$f":"VLOOKUP(C10,'3.táblázat'!$A$2:$B$22,2,0)","v":56.1},{"$f":"VLOOKUP(D10,'3.táblázat'!$A$2:$B$22,2,0)","v":0},{"$f":"VLOOKUP(E10,'3.táblázat'!$A$2:$B$22,2,0)","v":0},{"$f":"VLOOKUP(F10,'3.táblázat'!$A$2:$B$22,2,0)","v":0},{"$f":"VLOOKUP(G10,'3.táblázat'!$A$2:$B$22,2,0)","v":0},{"$f":"VLOOKUP(H10,'3.táblázat'!$A$2:$B$22,2,0)","v":0},{"$f":"VLOOKUP(I10,'3.táblázat'!$A$2:$B$22,2,0)","v":0},{"$f":"VLOOKUP(J10,'3.táblázat'!$A$2:$B$22,2,0)","v":0},{"$f":"VLOOKUP(K10,'3.táblázat'!$A$2:$B$22,2,0)","v":0},{"$f":"VLOOKUP(L10,'3.táblázat'!$A$2:$B$22,2,0)","v":0},{"$f":"VLOOKUP(M10,'3.táblázat'!$A$2:$B$22,2,0)","v":0},{"$f":"VLOOKUP(N10,'3.táblázat'!$A$2:$B$22,2,0)","v":0},{"$f":"VLOOKUP(O10,'3.táblázat'!$A$2:$B$22,2,0)","v":0},{"$f":"VLOOKUP(P10,'3.táblázat'!$A$2:$B$22,2,0)","v":0},null,null,null,"-","-","-","-","-","-","-","-","-","-","-","-","-","-"]
["ai*ei*gCO2,i*(1-bres,i)",null,{"$f":"ROUND(C12*C13*C17*(1-C21),4)","v":30.294},{"$f":"ROUND(D12*D13*D17*(1-D21),4)","v":0},{"$f":"ROUND(E12*E13*E17*(1-E21),4)","v":0},0,0,0,0,0,0,0,0,0,0,0,null,null,null,"-","-","-","-","-","-","-","-","-","-","-","-","-","-"]
["gCO2,vil (kg/MWh)",{"$f":"'3.táblázat'!B23","v":358.7},null,null,null,null,null,null,null,null,null,null,null,null,null,null,null,null,null,"-","-","-","-","-","-","-","-","-","-","-","-","-","-"]
["T (GJ)",{"$f":"SUM(C20:P20)","v":21600},{"$f":"C11*C13","v":21600},{"$f":"D11*D13","v":0},{"$f":"E11*E13","v":0},0,0,0,0,0,0,0,0,0,0,0,null,null,null,"-","-","-","-","-","-","-","-","-","-","-","-","-","-"]
["bi,res",null,{"$f":"VLOOKUP(C10,'3.táblázat'!$A$1:$C$21,3,FALSE)","v":0},{"$f":"VLOOKUP(D10,'3.táblázat'!$A$1:$C$21,3,FALSE)","v":0},{"$f":"VLOOKUP(E10,'3.táblázat'!$A$1:$C$21,3,FALSE)","v":0},{"$f":"VLOOKUP(F10,'3.táblázat'!$A$1:$C$21,3,FALSE)","v":0},{"$f":"VLOOKUP(G10,'3.táblázat'!$A$1:$C$21,3,FALSE)","v":0},{"$f":"VLOOKUP(H10,'3.táblázat'!$A$1:$C$21,3,FALSE)","v":0},{"$f":"VLOOKUP(I10,'3.táblázat'!$A$1:$C$21,3,FALSE)","v":0},{"$f":"VLOOKUP(J10,'3.táblázat'!$A$1:$C$21,3,FALSE)","v":0},{"$f":"VLOOKUP(K10,'3.táblázat'!$A$1:$C$21,3,FALSE)","v":0},{"$f":"VLOOKUP(L10,'3.táblázat'!$A$1:$C$21,3,FALSE)","v":0},{"$f":"VLOOKUP(M10,'3.táblázat'!$A$1:$C$21,3,FALSE)","v":0},{"$f":"VLOOKUP(N10,'3.táblázat'!$A$1:$C$21,3,FALSE)","v":0},{"$f":"VLOOKUP(O10,'3.táblázat'!$A$1:$C$21,3,FALSE)","v":0},{"$f":"VLOOKUP(P10,'3.táblázat'!$A$1:$C$21,3,FALSE)","v":0},null,null,null,"-","-","-","-","-","-","-","-","-","-","-","-","-","-"]
["Tres (GJ)",{"$f":"SUM(C22:P22)","v":0},{"$f":"C20*C21","v":0},{"$f":"D20*D21","v":0},{"$f":"E20*E21","v":0},0,0,0,0,0,0,0,0,0,0,0,null,null,null,"-","-","-","-","-","-","-","-","-","-","-","-","-","-"]
["bvil,res",{"$f":"'3.táblázat'!C23","v":0.1},null,null,null,null,null,null,null,null,null,null,null,null,null,null,null,null,null,"Megj: ","Megj: ","Megj: ","Megj: ","Megj: ","Megj: ","Megj: ","Megj: ","Megj: ","Megj: ","Megj: ","Megj: ","Megj: ","Megj: "]
["Tvil (GJ)",{"$f":"B11*B15*B16","v":1100},null,null,null,null,null,null,null,null,null,null,null,null,null,null,null,null,null,"-","-","-","-","-","-","-","-","-","-","-","-","-","-"]
["Tvil,res (GJ)",{"$f":"B24*B23","v":110},null,null,null,null,null,null,null,null,null,null,null,null,null,null,null,null,null,"-","-","-","-","-","-","-","-","-","-","-","-","-","-"]
["SPF (csak hőszivattyús termelés esetén)",1,null,null,null,null,null,null,null,null,null,null,null,null,null,null,null,null,null,"-","-","-","-","-","-","-","-","-","-","-","-","-","-"]
[]
["A távhőrendszer primerenergia hatékonysági tényezőjének (e) kiszámítása",null,null,null,null,null,null,null,null,null,null,null,null,null,null,null,null,null,null,"A ________________Kft. _______________távhőrendszerrel (  _______________  GJ  primerenergiafelhasználással) pályázott a Távhő Ökocímkére. A pályázat megfelel a mind a formai mind a tartalmi követelményeknek, a megadott adatokat rendben találtam /  a fenn jelölt cellákban talált értékeket módosítottam "]
[]
[null,null,null,null,null,null,null,null,null,null,null,null,null,null,null,null,null,null,null,"Az Értékelő bizottság számára elfogadásra javaslom, az alábbi feltételekkel _________________."]
[]
[null,null,null,null,null,null,null,null,null,null,null,null,null,null,null,null,null,null,null,null,null,null,null,null,null,null,null,null,null,"Szakértő "]
[null,null,"A távhőrendszer primerenergia hatékonysági tényezőjének értéke (GJ/GJ)",null,null,null,null,null,null,null,null,null,null,null,null,null,null,null,null,null,null,null,null,null,{"$f":"C33","v":"A távhőrendszer primerenergia hatékonysági tényezőjének értéke (GJ/GJ)"}]
[null,null,{"$f":"1/(1-B14)*(B16*B15+SUMPRODUCT(C12:P12,C13:P13))","v":0.66764705882352948},null,null,null,null,null,null,null,null,null,null,null,null,null,null,null,null,null,null,null,null,null,{"$f":"C34","v":0.66764705882352948},"OK"]
[]
[null,null,"A távhőrendszer primerenergia hatékonysági osztálya",null,null,null,null,null,null,null,null,null,null,null,null,null,null,null,null,null,null,null,null,null,"A távhőrendszer primerenergia hatékonysági osztálya"]
[null,null,{"$f":"IF(C34<'Besorolási osztályok'!D2,'Besorolási osztályok'!A2,IF(AND('Besorolási osztályok'!B3<=C34,C34<'Besorolási osztályok'!D3),'Besorolási osztályok'!A3,IF(AND('Besorolási osztályok'!B4<=C34,C34<'Besorolási osztályok'!D4),'Besorolási osztályok'!A4,IF(AND('Besorolási osztályok'!B5<=C34,C34<'Besorolási osztályok'!D5),'Besorolási osztályok'!A5,IF(AND('Besorolási osztályok'!B6<=C34,C34<'Besorolási osztályok'!D6),'Besorolási osztályok'!A6,IF(AND('Besorolási osztályok'!B7<=C34,C34<'Besorolási osztályok'!D7),'Besorolási osztályok'!A7,'Besorolási osztályok'!A8))))))","v":"A+"},null,null,null,null,null,null,null,null,null,null,null,null,null,null,null,null,null,null,null,null,null,{"$f":"C37","v":"A+"},"OK"]
[]
["A megújuló energiaforrásokkal termelt távhő (βres) részarányának kiszámítása"]
[]
[]
[]
[]
[]
[]
[null,null,"A távhőrendszerben megújuló energiaforrásokkal termelt távhő részaránya",null,null,null,null,null,null,null,null,null,null,null,null,null,null,null,null,null,null,null,null,null,{"$f":"C46","v":"A távhőrendszerben megújuló energiaforrásokkal termelt távhő részaránya"}]
[null,null,{"$f":"(SUMPRODUCT(C12:P12,C21:P21)+B15*B23)/(1+B15)","v":1.0880316518298715E-3},null,null,null,null,null,null,null,null,null,null,null,null,null,null,null,null,null,null,null,null,null,{"$f":"C47","v":1.0880316518298715E-3},"OK"]
[]
[null,null,"A távhőrendszer megújuló energiaforrásokkal termelt távhő részaránya szerinti osztályba sorolása",null,null,null,null,null,null,null,null,null,null,null,null,null,null,null,null,null,null,null,null,null,"A távhőrendszer megújuló energiaforrásokkal termelt távhő részaránya szerinti osztályba sorolása"]
[null,null,{"$f":"IF(C47>'Besorolási osztályok'!G2,'Besorolási osztályok'!A2,IF(AND('Besorolási osztályok'!E3>='Besorolási osztályok'!A47,C47>'Besorolási osztályok'!G3),'Besorolási osztályok'!A3,IF(AND('Besorolási osztályok'!E4>=C47,C47>'Besorolási osztályok'!G4),'Besorolási osztályok'!A4,IF(AND('Besorolási osztályok'!E5>=C47,C47>'Besorolási osztályok'!G5),'Besorolási osztályok'!A5,IF(AND('Besorolási osztályok'!E6>=C47,C47>'Besorolási osztályok'!G6),'Besorolási osztályok'!A6,IF(AND('Besorolási osztályok'!E7>=C47,C47>'Besorolási osztályok'!G7),'Besorolási osztályok'!A7,'Besorolási osztályok'!A8))))))","v":"F"},null,null,null,null,null,null,null,null,null,null,null,null,null,null,null,null,null,null,null,null,null,"F","OK"]
[]
["A távhőrendszer fajlagos CO2-kibocsátásának (gco2) kiszámítása"]
[]
[]
[]
[]
[null,null,"A távhőrendszer fajlagos CO2-kibocsátása (kg/GJ)",null,null,null,null,null,null,null,null,null,null,null,null,null,null,null,null,null,null,null,null,null,{"$f":"C57","v":"A távhőrendszer fajlagos CO2-kibocsátása (kg/GJ)"}]
[null,null,{"$f":"1/(1-B14)*(B15*B19/3.6+SUM(C18:P18))","v":36.929444444444449},null,null,null,null,null,null,null,null,null,null,null,null,null,null,null,null,null,null,null,null,null,{"$f":"C58","v":36.929444444444449},"OK"]
[]
[null,null,"A távhőrendszer fajlagos CO2-kibocsátás szerinti osztályba sorolása",null,null,null,null,null,null,null,null,null,null,null,null,null,null,null,null,null,null,null,null,null,"A távhőrendszer fajlagos CO2-kibocsátás szerinti osztályba sorolása"]
[null,null,{"$f":"IF(C58<'Besorolási osztályok'!J2,'Besorolási osztályok'!A2,IF(AND('Besorolási osztályok'!H3<=C58,C58<'Besorolási osztályok'!J3),'Besorolási osztályok'!A3,IF(AND('Besorolási osztályok'!H4<=C58,C58<'Besorolási osztályok'!J4),'Besorolási osztályok'!A4,IF(AND('Besorolási osztályok'!H5<=C58,C58<'Besorolási osztályok'!J5),'Besorolási osztályok'!A5,IF(AND('Besorolási osztályok'!H6<=C58,C58<'Besorolási osztályok'!J6),'Besorolási osztályok'!A6,IF(AND('Besorolási osztályok'!H7<=C58,C58<'Besorolási osztályok'!J7),'Besorolási osztályok'!A7,'Besorolási osztályok'!A8))))))","v":"A+"},null,null,null,null,null,null,null,null,null,null,null,null,null,null,null,null,null,null,null,null,null,"A+","OK"]

{"sheet":"1.táblázat","index":1,"n_rows":17,"n_cols":2,"rows_kept":17,"cut":false,"hidden":false,"merged":[]}
["Távhőtermelő technológia","Távhőtermelő technológia\nprimerenergia-átalakítási tényezője (ei)"]
["-",0]
["1.Kizárólagos (nem kapcsolt) hőtermelés (fűtőmű/kazánház) - szénhidrogének (földgáz, tüzelőolaj, fűtőolaj)",1.1200000000000001]
["2.Kizárólagos (nem kapcsolt) hőtermelés (fűtőmű/kazánház) - biogáz",1.1200000000000001]
["3.Kizárólagos (nem kapcsolt) hőtermelés (villamos kazán) - villamos energia",2.5499999999999998]
["4.Kizárólagos (nem kapcsolt) hőtermelés (fűtőmű/kazánház) - szénféleségek",1.25]
["5.Kizárólagos (nem kapcsolt) hőtermelés (fűtőmű/kazánház) - tüzifa, faapríték, fahulladék, biobrikett, egyéb bio tüzelőanyagok",1.1599999999999999]
["6.Kizárólagos (nem kapcsolt) hőtermelés (fűtőmű/kazánház) - kommunális hulladék",1.22]
["7.Kizárólagos (nem kapcsolt) hőtermelés (fűtőmű/kazánház) - hulladékhő",0]
["8.Kizárólagos (nem kapcsolt) hőtermelés (fűtőmű/kazánház) - szoláris- és geotermikus energia",1]
["9.Nukleáris energia",1]
["10.Kapcsolt energiatermelés kombinált ciklusú erőművi blokkban",0.54]
["11.Kapcsolt energiatermelés hagyományos gőz-körfolyamatú erőművi blokkban",0.87]
["12.Kapcsolt energiatermelés 1.200 kWe villamos egységteljesítményt meghaladó gázmotorral ",0.55000000000000004]
["13.Kapcsolt energiatermelés 1.200 kWe villamos egységteljesítményt nem meghaladó gázmotorral ",0.72]
["14.Kapcsolt energiatermelés hőhasznosító kazánnal ellátott gázturbinás erőműben ",0.82]
["15.Kapcsolt energiatermelés hőszivattyúval",0.7142857142857143]

{"sheet":"2.táblázat","index":2,"n_rows":5,"n_cols":2,"rows_kept":5,"cut":false,"hidden":false,"merged":[[0,0,0,1]]}
["A hőtermeléshez és primer oldali keringtetéshez felhasznált villamos energia aránya a kiadott hőmennyiségre vetítve (avil) a hőtermelő által kiadott hőmennyiség (Q /GJ/év/) függvényében "]
["Q (GJ/év)","avill (GJ/GJ)"]
["Q<100.000",1.0999999999999999E-2]
["100.000<=Q<500.000",8.0000000000000002E-3]
["500.000=<Q",6.0000000000000001E-3]

{"sheet":"3.táblázat","index":3,"n_rows":25,"n_cols":4,"rows_kept":25,"cut":false,"hidden":false,"merged":[[0,0,0,1],[24,0,24,2]]}
["Primer energiaforrások és a villamosenergia-rendszer fajlagos CO2 kibocsátási tényezői",null,"Megújuló részarány"]
["Primer energiaforrás","gCO2 (kg/GJ)","bres"]
["-",0,0]
["Szén",94.6,0]
["Lignit",113.2,0]
["Tűzifa és fahulladék, biobrikett, egyéb bio tüzelőanyagok",109.6,1]
["Szoláris-, geotermikus-, szél- és vízenergia",0,1]
["Nukleárisenergia",0,0]
["Hulladék hő (ipari, saját, füstgáz, stb)",0,0]
["Hulladék hő (megújuló alapú termelésből) ",0,1]
["Kommunális hulladék",90.5,0.5]
["Tüzelőolajok",74.099999999999994,0]
["Fűtőolajok",77.400000000000006,0]
["Földgáz",56.1,0]
["PB/SNG-gáz",63.1,0]
["Kamragáz",47.7,0]
["Kohógáz",242,0]
["Biogáz",54.9,1]
["Saját termelésű villamos energia",{"$f":"B23/3.6","v":99.638888888888886},0.1,"Kérjük itt adja meg a másik lapfülön kiszámolt saját rendszerére jellemző adatokat."]
["Hálózatról vételezett villamos energia",{"$f":"B23/3.6","v":99.638888888888886},0.1]
["Hőszivattyú esetén ",null,"1-1/SPF*"]
[null,"gCO2 (kg/MWh)"]
[" Villamosenergia-rendszer (Pakssal)*",358.7,0.1]
[]
["* Források: \nMagyar Energetika  2017/1.\nA MAGYAR VILLAMOSENERGIA-RENDSZER (VER) 2015. ÉVI ADATAI, MEKH, MAVIR"]

{"sheet":"e VKk","index":4,"n_rows":5,"n_cols":2,"rows_kept":5,"cut":false,"hidden":false,"merged":[]}
["Kapcsoltan termelt villamos energiával fűtött kazán primerenergia-átalakítási tényezője "]
["e VKk",{"$f":"IFERROR(1/(B4*B5),0)","v":1}]
[]
["href",1]
["hVK",1]

{"sheet":"Kapcsolt ei meghatározás","index":5,"n_rows":9,"n_cols":2,"rows_kept":9,"cut":false,"hidden":false,"merged":[]}
["Kapcsoltan termelt hő fajlagos primerenergia-felhasználásának számítással történő meghatározása"]
["ei",{"$f":"IFERROR(((1+B4)/B6)-(B4/B5),0)","v":0}]
[]
["si",{"$f":"IFERROR(B8/B9,0)","v":0}]
["href,i",1]
["hen,i ",{"$f":"IFERROR((B8+B9)/B7,0)","v":0}]
["Gi",0]
["Ei",0]
["Qi",0]

{"sheet":"Saját e vill","index":6,"n_rows":6,"n_cols":2,"rows_kept":6,"cut":false,"hidden":false,"merged":[]}
["Saját termelésű villamos energia felhasználásának figyelembevétele"]
["e vill",{"$f":"IFERROR((((1-B6)*B5)+(B6*(1/B4))),0)","v":2.5}]
[]
["href",1]
["ever",2.5]
["p",0]

{"sheet":"Besorolási osztályok","index":7,"n_rows":8,"n_cols":10,"rows_kept":8,"cut":false,"hidden":false,"merged":[[0,1,0,3],[0,4,0,6],[0,7,0,9]]}
["Osztály","e",null,null,"bRes",null,null,"gCO2"]
["A+",null,"e<",0.94,null,"bRes>",0.42,null,"gCO2<",40.4]
["A",0.94,"≤e<",1.03,0.42,"³bRes>",0.27300000000000002,40.4,"≤gCO2<",47.1]
["B",1.03,"≤e<",1.1100000000000001,0.27300000000000002,"³bRes>",0.21,47.1,"≤gCO2<",53.9]
["C",1.1100000000000001,"≤e<",1.2,0.21,"³bRes>",0.16800000000000001,53.9,"≤gCO2<",67.3]
["D",1.2,"≤e<",1.29,0.16800000000000001,"³bRes>",0.126,67.3,"≤gCO2<",77.400000000000006]
["E",1.29,"≤e<",1.37,0.126,"³bRes>",6.3E-2,77.400000000000006,"≤gCO2<",87.5]
["F",1.37,"≤e",null,6.3E-2,"³bRes",null,87.5,"≤gCO2"]